[Event "Elegant Academy GM Aspirant-II"]
[Site "Dhaka"]
[Date "2024.02.26"]
[Round "8.1"]
[White "Aradhya, Garg"]
[Black "Rahman, Ziaur"]
[Result "0-1"]
[ECO "A90"]
[WhiteElo "2390"]
[BlackElo "2428"]
[Annotator "TA"]
[PlyCount "62"]
[EventDate "2024.02.21"]
[EventType "tourn"]
[EventCountry "BAN"]
[SourceTitle "playchess.com"]
[Source "ChessBase"]
[SourceQuality "1"]
[TimeControl "5400+30"]

{[%evp 13,62,22,31,-5,0,-24,12,3,34,15,25,13,22,7,87,45,48,47,54,59,84,14,0,-56,18,15,35,0,58,-57,0,-161,-160,-166,-159,-160,-118,-116,-120,-243,-190,-171,-185,-178,-186,-180,-179,-29981,-29982,-29997,-29998]} 1. d4 {[%emt 0:00:02]} d5 {[%emt 0:00:37]} 2. c4 {[%emt 0:00:02]} e6 {[%emt 0:00:06]} 3. Nf3 {[%emt 0:00:03]} c6 {[%emt 0:00:16]} 4. Nbd2 {[%emt 0:00:48]} f5 {[%emt 0:01:05]} 5. g3 {[%emt 0:00:15]} Nd7 {[%emt 0:00:18]} 6. Bg2 {[%emt 0:03:43]} Bd6 {[%emt 0:01:08]} 7. O-O {[%emt 0:03:26]} Ngf6 {[%emt 0:01:01]} 8. Ng5 {[%emt 0:04:13]} Qe7 {[%emt 0:02:07]} 9. a4 {[%emt 0:03:44]} h6 {[%emt 0:02:35]} 10. Ngf3 {[%emt 0:01:27] The position is equal.} g5 {[%emt 0:05:39]} 11. a5 {[%emt 0:00:40]} a6 {[%emt 0:01:43]} 12. b3 {[%emt 0:10:11]} Ne4 {[%emt 0:02:56]} 13. Qc2 {[%emt 0:13:48]} h5 {[%emt 0:08:21]} (13... Qg7 $11) 14. Nxe4 {[%emt 0:03:34]} dxe4 {[%emt 0:00:47]} 15. Nxg5 {[%emt 0:01:49] Hoping for h4.} (15. Bxg5 Qg7 16. Qd2 exf3 17. exf3 h4 $15) 15... h4 {[%emt 0:01:32]} 16. Bxe4 {[%emt 0:11:07]} fxe4 {[%emt 0:04:22]} 17. Qxe4 {[%emt 0:00:02]} (17. Nxe4 $16 {And now Bg5 would win.} Bc7 18. Bg5) 17... Nf8 $11 {[%emt 0:01:18]} 18. Bf4 {[%emt 0:04:24]} (18. gxh4 Bd7 19. Nf3 Qh7 20. Qxh7 Rxh7) ({White should try} 18. Qe3 $11) 18... Bd7 {[%emt 0:03:30]} ({Better is} 18... Bxf4 $15 19. Qxf4 Ng6) 19. Bxd6 {[%emt 0:01:25]} Qxg5 {[%emt 0:01:08] Black is weak on the dark squares} 20. Rad1 {[%emt 0:05:45]} Ng6 {[%emt 0:04:49]} ({Black should play} 20... O-O-O $11) 21. d5 {[%emt 0:00:28]} (21. g4 $1 $14) 21... Qf5 {[%emt 0:02:51]} (21... e5 $15 22. Bxe5 (22. f4 Qg4 $17) 22... O-O (22... Nxe5 23. f4 $11)) 22. Qd4 $2 {[%emt 0:05:23] [#]} (22. Qe3 $11 {and White stays safe.}) 22... e5 $1 $36 {[%emt 0:04:06][%mdl 2048] White is under strong pressure.} 23. Qe3 {[%emt 0:00:01]} (23. Qb6 Qh3 (23... Kf7 24. Qxb7 Rad8 25. dxc6 $14) 24. Qe3 (24. Qxb7 $2 {too greedy.} Rc8 $19) 24... hxg3 25. Qxg3 Nf4 $19) 23... Qh5 {[%emt 0:03:25] aiming for ...hxg3.} 24. g4 {[%emt 0:04:00]} Bxg4 {[%emt 0:02:07]} 25. dxc6 {[%emt 0:00:29]} bxc6 {[%emt 0:02:44]} 26. Rd2 {[%emt 0:04:24] Now White is beyond hope.} (26. f3 $17 Bh3 27. Rfe1) 26... Qf5 {[%emt 0:12:37] ...Bh3 is the strong threat.} 27. f3 {[%emt 0:01:19]} Bh3 {[%emt 0:00:48]} 28. Rfd1 {[%emt 0:00:05] [#]} Rh5 $1 {[%emt 0:06:59]} 29. Kf2 {[%emt 0:02:20]} Rg5 {[%emt 0:05:47]} 30. Rg1 $2 {[%emt 0:01:31]} (30. Ke1 $19 Rc8 31. Rb2) 30... Rxg1 {[%emt 0:00:33]} 31. Kxg1 {[%emt 0:00:02]} Qb1+ {[%emt 0:00:43] Weighted Error Value: White=0.52/Black=0.23 (precise) .  Loses game:     	White=1     	---        Mistake:       	White=5     	Black=4      Inaccurate:     	White=2     	Black=2      OK:         	White=6     	Black=5      Best:        	White=1     	Black=4      Strong:       	---       	Black=1} 0-1

[Event "Elegant Academy GM Aspirant-II"]
[Site "Dhaka"]
[Date "2024.02.26"]
[Round "8.2"]
[White "Liyanage, Ranindu Dilshan"]
[Black "Mohammad Fahad, Rahman"]
[Result "0-1"]
[ECO "D00"]
[WhiteElo "2366"]
[BlackElo "2418"]
[Annotator "TA"]
[PlyCount "60"]
[EventDate "2024.02.21"]
[EventType "tourn"]
[EventCountry "BAN"]
[SourceTitle "playchess.com"]
[Source "ChessBase"]
[SourceQuality "1"]
[TimeControl "5400+30"]

{[%evp 9,60,-19,-40,-32,-13,-19,6,25,21,17,6,0,0,13,69,4,50,48,41,46,77,56,91,44,53,49,60,53,48,45,88,62,77,72,77,75,82,25,22,31,56,-475,-473,-1708,-1875,-29963,-670,-29969,-29970,-29978,-29967,-29998,-29999]} 1. d4 {[%emt 0:00:17]} d5 {[%emt 0:00:08]} 2. Nc3 {[%emt 0:00:08]} c5 {[%emt 0:00:06]} 3. e4 {[%emt 0:00:51]} dxe4 {[%emt 0:00:14]} 4. dxc5 {[%emt 0:01:31]} Qxd1+ {[%emt 0:00:54]} 5. Kxd1 {[%emt 0:00:20]} Nf6 {[%emt 0:03:23]} 6. Nge2 {[%emt 0:11:06]} Bf5 {[%emt 0:00:26]} 7. Nd4 {[%emt 0:01:27]} Bg4+ {[%emt 0:04:34]} 8. Ke1 {[%emt 0:07:06] The position is equal.} a6 {[%emt 0:09:10]} 9. h3 {[%emt 0:02:54]} Bd7 {[%emt 0:07:24]} 10. g4 {[%emt 0:01:36]} e5 {[%emt 0:07:53]} 11. Nb3 {[%emt 0:00:32]} Bc6 {[%emt 0:00:06]} (11... Be6 $11) 12. Bg2 {[%emt 0:01:36]} (12. Be3 $14) 12... h6 {[%emt 0:00:21]} (12... a5 $11 {is superior.}) 13. Be3 $14 {[%emt 0:21:23]} Nbd7 {[%emt 0:08:46]} 14. Rd1 {[%emt 0:00:29]} O-O-O {[%emt 0:00:38]} 15. a3 {[%emt 0:01:17]} (15. Na5 Bxc5 16. Nxc6 bxc6 $11) 15... Kc7 {[%emt 0:03:04]} 16. Ke2 {[%emt 0:02:25]} (16. Na5 $6 Bxc5 17. Nxc6 bxc6 $11) (16. Bf1 $1 $16) 16... Be7 {[%emt 0:00:49]} 17. Rd2 {[%emt 0:02:50]} g5 {[%emt 0:04:18][%cal Bg7g5,Bg5f4,Bf4f3][%mdl 32]} 18. Rhd1 {[%emt 0:04:01]} h5 {[%emt 0:05:34]} 19. gxh5 {[%emt 0:02:16]} Nxh5 {[%emt 0:10:40] aiming for ...f5.} 20. Bxe4 {[%emt 0:01:19]} (20. Nxe4 $2 f5 21. Nxg5 Bxg2 22. Ne6+ Kc8 23. Nxd8 Rxd8 $19) 20... Bxe4 {[%emt 0:02:31]} 21. Nxe4 {[%emt 0:00:08][%cal Ob3a5] And now Na5! would win.} Nf4+ {[%emt 0:00:07]} 22. Bxf4 {[%emt 0:00:52]} gxf4 {[%emt 0:00:09]} 23. Nd6 {[%emt 0:10:03]} (23. Na5 $1 $16 {[%cal Ra5b7] Nxb7! would now be deadly.} f5 24. Nc3 Bxc5 (24... Nxc5 25. Nd5+ Rxd5 26. Rxd5 $16) 25. Nd5+ (25. Nxb7 Kxb7 26. Rxd7+ Rxd7 $14) 25... Kb8 26. Nxf4 exf4 27. Rxd7 Rde8+ 28. Kf3 (28. Kf1 f3 $11)) 23... Nxc5 $11 {[%emt 0:05:52]} 24. Nxf7 {[%emt 0:02:36] Excellent horsemanship.} f3+ {[%emt 0:03:58]} 25. Ke1 $2 {[%emt 0:05:54][%mdl 8192] [#] This move loses the game for White.} (25. Kxf3 $2 {perishes.} Rdf8 (25... Rxh3+ 26. Kg2 $16) 26. Nxc5 Rxf7+ 27. Ke4 Bxc5 28. Kxe5 Bxf2 $19) (25. Ke3 $1 $14 {is the one way to stay ahead.} Rxd2 26. Nxd2 (26. Rxd2 $2 {too greedy.} Rf8 $19)) 25... Rdg8 $1 $19 {[%emt 0:00:25][%cal Rg8g1]} 26. Rd5 {[%emt 0:00:37] [#]} (26. Rd3 $142 Nxd3+ (26... Rg1+ $2 27. Kd2 $19) 27. Rxd3 Rxh3 28. Rc3+ Kb8 29. Nc5 Bxc5 30. Rxc5 Rh1+ 31. Kd2) 26... Ne4 $1 {[%emt 0:00:16][%cal Rg8g1]} 27. Nd2 {[%emt 0:02:58]} Rg1+ {[%emt 0:00:16]} 28. Nf1 {[%emt 0:00:06]} Rxh3 {[%emt 0:00:06] Black mates.} 29. Rd7+ {[%emt 0:01:47]} Kb8 {[%emt 0:00:17][%cal Og1f1]} 30. Rxe7 {[%emt 0:01:16] [#]} Rxf1+ $1 {[%emt 0:00:07][%mdl 512] Weighted Error Value: White=0.71/Black=0.13 (very precise) .  Loses game:     	White=1     	---        Mistake:       	White=4     	Black=2      Inaccurate:     	White=1     	Black=3      OK:         	White=9     	Black=4      Best:        	White=1     	Black=1      Strong:       	---       	Black=2} 0-1

[Event "Elegant Academy GM Aspirant-II"]
[Site "Dhaka"]
[Date "2024.02.26"]
[Round "8.3"]
[White "Murshed, Niaz"]
[Black "Mayank Chakraborty"]
[Result "1/2-1/2"]
[ECO "C55"]
[WhiteElo "2363"]
[BlackElo "2409"]
[Annotator "TA"]
[PlyCount "123"]
[EventDate "2024.02.21"]
[EventType "tourn"]
[EventCountry "BAN"]
[SourceTitle "playchess.com"]
[Source "ChessBase"]
[SourceQuality "1"]
[TimeControl "5400+30"]

{[%evp 42,123,168,167,197,186,226,243,231,232,333,344,740,716,809,261,250,273,302,302,302,302,296,295,308,300,389,389,387,387,670,672,641,543,532,426,418,373,381,368,376,370,363,355,362,362,343,343,346,338,347,335,393,393,389,322,444,451,494,487,545,503,445,445,571,561,597,597,597,597,577,527,498,495,473,408,770,782,721,502,487,487,779,764]} 1. e4 {[%emt 0:00:05]} e5 {[%emt 0:00:05]} 2. Nf3 {[%emt 0:00:13]} Nc6 {[%emt 0:00:04]} 3. Bc4 {[%emt 0:00:25]} Nf6 {[%emt 0:00:09]} 4. d3 {[%emt 0:00:16]} h6 {[%emt 0:00:08]} 5. O-O {[%emt 0:00:51]} d6 {[%emt 0:00:17]} 6. a3 {[%emt 0:04:09] C55: Two Knights: 4 d3, 4 d4 exd4 5 e5 and Max Lange Attack.} g6 {[%emt 0:00:34]} 7. h3 {[%emt 0:06:15]} g5 $146 {[%emt 0:00:51]} ({Predecessor:} 7... Bg7 8. Nc3 O-O 9. Nh2 Be6 10. Bxe6 fxe6 11. f4 exf4 12. Bxf4 Nh5 13. Be3 Rxf1+ 14. Nxf1 {1-0 Dourerassou,J (2477)-Jenni,F (2456) Titled Tuesday intern op 7th April blitz 2020 (1)}) 8. Nh2 {[%emt 0:04:49]} Rg8 {[%emt 0:02:25]} 9. Ng4 {[%emt 0:04:11]} Bxg4 {[%emt 0:04:47]} 10. hxg4 {[%emt 0:00:07]} Qd7 {[%emt 0:00:16]} 11. Nc3 {[%emt 0:01:24]} Ne7 {[%emt 0:05:41]} 12. f3 {[%emt 0:03:32]} Bg7 {[%emt 0:16:03]} 13. Be3 {[%emt 0:11:36]} a6 {[%emt 0:09:48]} 14. Qe2 {[%emt 0:07:29]} Ng6 {[%emt 0:01:21]} 15. g3 {[%emt 0:01:18]} c6 {[%emt 0:15:37]} 16. Ba2 {[%emt 0:10:38]} Qe7 {[%emt 0:02:11]} 17. b4 {[%emt 0:01:57]} Nf8 {[%emt 0:00:54]} 18. a4 {[%emt 0:03:39]} Ne6 {[%emt 0:00:16]} 19. b5 {[%emt 0:06:36]} h5 {[%emt 0:04:04]} 20. bxc6 {[%emt 0:02:51]} bxc6 {[%emt 0:00:01]} 21. Rab1 {[%emt 0:04:21]} Qd7 {[%emt 0:06:36]} 22. Rb6 {[%emt 0:03:58]} hxg4 {[%emt 0:12:27]} 23. fxg4 {[%emt 0:00:33]} Nf4 {[%emt 0:00:45]} 24. gxf4 {[%emt 0:03:07]} gxf4 {[%emt 0:00:04]} 25. Rfb1 $1 {[%emt 0:12:30]} Bh6 {[%emt 0:00:25]} (25... Bf8 {was worth a try.}) 26. Rb8+ $18 {[%emt 0:00:48]} Ke7 $2 {[%emt 0:01:19] [#]} (26... Rxb8 27. Rxb8+ Ke7 28. Rxg8 Nxg8) 27. R8b7 $1 $18 {[%emt 0:00:08]} Rxg4+ {[%emt 0:02:12] [#]} 28. Qxg4 $2 {[%emt 0:00:45]} (28. Kf1 $3 {[%mdl 512]}) 28... Nxg4 $18 {[%emt 0:00:04]} 29. Bf2 {[%emt 0:01:39]} (29. Rxd7+ Kxd7 30. Bf2 Kc7 31. Bxf7 Ne3 32. Bxe3 fxe3 $18) 29... Rg8 {[%emt 0:00:38]} 30. Rxd7+ {[%emt 0:02:05]} Kxd7 {[%emt 0:00:01]} 31. Rb7+ {[%emt 0:01:02]} (31. Bxf7 Rg7 32. Bc4 Ne3+ 33. Kh1 Nxc4) 31... Kc8 {[%emt 0:00:21]} 32. Rxf7 {[%emt 0:00:05]} Rg6 {[%emt 0:02:28]} 33. Kf1 {[%emt 0:00:29]} f3 {[%emt 0:00:22]} 34. Nd1 {[%emt 0:01:06]} (34. Rxf3 Nh2+ 35. Ke2 Nxf3 $18) 34... Bf4 {[%emt 0:00:46]} 35. Rh7 {[%emt 0:00:18]} Bh6 $2 {[%emt 0:01:30]} (35... Nxf2 36. Kxf2 Rg2+ 37. Kxf3 Rxc2 38. Be6+ Kb8) 36. Bf7 $18 {[%emt 0:00:27]} Rf6 {[%emt 0:00:34]} 37. Be8 {[%emt 0:00:50]} Nxf2 {[%emt 0:00:07]} 38. Kxf2 {[%emt 0:00:28]} d5 {[%emt 0:00:06]} 39. Rf7 {[%emt 0:00:24]} Rd6 {[%emt 0:01:01]} 40. exd5 {[%emt 0:00:17]} (40. Kxf3 Kd8 41. Bxc6 Rxc6 42. exd5 Rxc2 $18) (40. Rxf3 dxe4 41. Rh3 (41. dxe4 Rxd1 42. Rf6 Bf4 $14) 41... Kd8) 40... cxd5 {[%emt 0:00:06]} 41. Rxf3 {[%emt 0:00:20]} (41. Kxf3 e4+ 42. dxe4 dxe4+ 43. Kxe4 (43. Ke2 Kd8 $11) 43... Rxd1 $14) 41... e4 {[%emt 0:00:06]} 42. Rh3 {[%emt 0:00:35]} Kd8 {[%emt 0:00:16]} 43. Bh5 {[%emt 0:00:21]} Rc6 {[%emt 0:00:12]} 44. dxe4 {[%emt 0:01:18]} dxe4 {[%emt 0:00:51]} 45. Be2 {[%emt 0:00:25]} Bd2 {[%emt 0:00:30]} 46. c4 {[%emt 0:00:21]} Rf6+ {[%emt 0:00:35]} 47. Kg2 {[%emt 0:00:08]} Kc7 {[%emt 0:00:49]} 48. Rh4 {[%emt 0:00:22]} Re6 {[%emt 0:01:10]} 49. Nf2 {[%emt 0:00:25]} e3 {[%emt 0:00:31]} 50. Nd3 {[%emt 0:00:12]} Kb6 {[%emt 0:00:20]} 51. Rh5 {[%emt 0:00:22]} Rc6 {[%emt 0:00:26]} 52. Ne5 {[%emt 0:00:47]} Rc8 {[%emt 0:00:07]} 53. Rh6+ {[%emt 0:00:59]} Ka5 {[%emt 0:00:21]} 54. c5 {[%emt 0:00:20]} Kxa4 {[%emt 0:00:29]} 55. Rxa6+ {[%emt 0:00:12]} Kb4 {[%emt 0:00:09]} 56. c6 {[%emt 0:00:28]} Kc5 {[%emt 0:00:20]} 57. Bg4 {[%emt 0:01:15]} Rc7 {[%emt 0:00:40]} 58. Kf3 {[%emt 0:00:44]} Kd6 {[%emt 0:06:53]} (58... Bc3 $142 59. Nd7+ Kd6) 59. Ke4 $18 {[%emt 0:01:29]} Bc3 {[%emt 0:00:12]} 60. Nc4+ {[%emt 0:00:56]} Kc5 {[%emt 0:08:09]} 61. Kd3 {[%emt 0:01:20]} (61. Nxe3 Rxc6 62. Ra2 Bg7 $16) 61... e2 {[%emt 0:00:30]} (61... Bb4 $142 62. Ne5 (62. Nxe3 Rxc6 63. Ra8 Rd6+ 64. Ke2 Bd2 $16) 62... Kd6) 62. Bxe2 {[%emt 0:00:30]} (62. Kxc3 $2 {loses.} e1=Q+ (62... e1=R 63. Ra5+ Kxc6 64. Kd2 $11) 63. Nd2 Kb5 $19 (63... Rxc6 64. Rxc6+ Kxc6 65. Kd3 $19)) 1/2-1/2

[Event "Elegant Academy GM Aspirant-II"]
[Site "Dhaka"]
[Date "2024.02.26"]
[Round "8.4"]
[White "Siddharth, Jagadeesh"]
[Black "Setyaki, Azarya Jodi"]
[Result "1/2-1/2"]
[ECO "D07"]
[WhiteElo "2457"]
[BlackElo "2400"]
[Annotator "TA"]
[PlyCount "61"]
[EventDate "2024.02.21"]
[EventType "tourn"]
[EventCountry "BAN"]
[SourceTitle "playchess.com"]
[Source "ChessBase"]
[SourceQuality "1"]
[TimeControl "5400+30"]

{[%evp 18,61,42,55,64,78,85,39,105,95,88,14,18,0,-7,0,0,-8,0,-85,-89,-111,-62,-82,-90,-61,-13,-16,-12,-14,-14,-29,-29,-29,0,0,0,0,0,0,0,0,0,-9,0,0]} 1. d4 {[%emt 0:02:13]} d5 {[%emt 0:00:15]} 2. c4 {[%emt 0:00:16]} Nc6 {[%emt 0:00:31]} 3. cxd5 {[%emt 0:02:24]} Qxd5 {[%emt 0:00:29]} 4. e3 {[%emt 0:00:39]} e5 {[%emt 0:00:43]} 5. Nc3 {[%emt 0:00:24]} Bb4 {[%emt 0:01:15]} 6. Bd2 {[%emt 0:00:21]} Bxc3 {[%emt 0:01:09]} 7. bxc3 {[%emt 0:01:03]} Nf6 {[%emt 0:01:30]} 8. f3 {[%emt 0:07:15]} Qd6 {[%emt 0:05:36]} 9. Bd3 {[%emt 0:02:23]} O-O {[%emt 0:04:13]} 10. Ne2 {[%emt 0:00:38]} a5 {[%emt 0:19:59]} 11. O-O {[%emt 0:00:52]} b6 {[%emt 0:00:29]} 12. Ng3 {[%emt 0:11:01]} (12. Rc1 $16) 12... Ba6 {[%emt 0:03:15]} (12... exd4 $14 13. cxd4 Be6) 13. Bxa6 $16 {[%emt 0:00:56]} Rxa6 {[%emt 0:00:07]} 14. f4 {[%emt 0:00:27]} (14. e4 $16) 14... exd4 $11 {[%emt 0:08:56]} 15. exd4 {[%emt 0:00:03]} b5 {[%emt 0:03:33]} 16. f5 {[%emt 0:07:27]} b4 {[%emt 0:09:48]} 17. Bf4 {[%emt 0:00:11]} Qd8 {[%emt 0:00:11]} 18. cxb4 {[%emt 0:09:36]} (18. Qd3 $11 Rb6 19. Rad1) 18... axb4 $17 {[%emt 0:01:19][%cal Od8d5]} (18... Qxd4+ $2 {too greedy.} 19. Qxd4 Nxd4 20. Be5 $16) 19. Kh1 {[%emt 0:01:09]} Nxd4 {[%emt 0:03:24] A dynamic duo of knights.} (19... Qxd4 $17 20. Qe2 Rfa8) 20. Bxc7 $1 $15 {[%emt 0:12:17]} Qxc7 {[%emt 0:00:16]} 21. Qxd4 {[%emt 0:00:05]} Qa7 {[%emt 0:00:06]} (21... Ra4 $15 22. Rfe1 Qa5) 22. Qxb4 $11 {[%emt 0:00:09]} Rxa2 {[%emt 0:00:07]} 23. Rxa2 {[%emt 0:00:02]} Qxa2 {[%emt 0:00:06]} 24. Ne4 {[%emt 0:00:12]} Nxe4 {[%emt 0:00:09]} 25. Qxe4 {[%emt 0:00:04]} Qa8 {[%emt 0:00:08]} 26. Qxa8 {[%emt 0:00:04] The position is equal.} Rxa8 {[%emt 0:00:03] KR-KR} 27. h3 {[%emt 0:00:06]} f6 {[%emt 0:00:05]} 28. Rb1 {[%emt 0:42:13]} h5 {[%emt 0:00:11]} 29. Rb4 {[%emt 0:00:00]} Ra5 {[%emt 0:00:05]} 30. g4 {[%emt 0:00:00]} hxg4 {[%emt 0:00:03]} 31. hxg4 {[%emt 0:00:00] Weighted Error Value: White=0.20 (precise) /Black=0.15 (very precise) .  Mistake:       	White=3     	Black=3      Inaccurate:     	---       	Black=1      OK:         	White=8     	Black=4      Best:        	White=1     	Black=1      Strong:       	White=1     	---} 1/2-1/2

[Event "Elegant Academy GM Aspirant-II"]
[Site "Dhaka"]
[Date "2024.02.26"]
[Round "8.5"]
[White "Sriram, Jha"]
[Black "Panesar Vedant"]
[Result "1/2-1/2"]
[ECO "A49"]
[WhiteElo "2317"]
[BlackElo "2452"]
[Annotator "TA"]
[PlyCount "62"]
[EventDate "2024.02.21"]
[EventType "tourn"]
[EventCountry "BAN"]
[SourceTitle "playchess.com"]
[Source "ChessBase"]
[SourceQuality "1"]
[TimeControl "5400+30"]

{[%evp 10,62,31,27,30,11,12,10,12,0,6,-12,0,-7,0,0,0,0,5,0,0,0,0,0,0,0,0,0,0,-6,-7,-20,-18,-31,-25,-51,-24,-27,-22,-23,-27,-37,-35,-38,-28,-34,7,-27,0,0,0,2,5,5,36]} 1. d4 {[%emt 0:00:46]} Nf6 {[%emt 0:00:03]} 2. Nf3 {[%emt 0:00:25]} g6 {[%emt 0:00:12]} 3. g3 {[%emt 0:01:24]} Bg7 {[%emt 0:00:06]} 4. Bg2 {[%emt 0:00:06]} O-O {[%emt 0:00:06]} 5. O-O {[%emt 0:00:04]} d6 {[%emt 0:00:04]} 6. Nc3 {[%emt 0:00:12]} Bf5 {[%emt 0:01:10]} 7. Re1 {[%emt 0:00:25]} Ne4 {[%emt 0:01:38]} 8. Nxe4 {[%emt 0:03:33]} Bxe4 {[%emt 0:00:05]} 9. c3 {[%emt 0:00:03]} Nd7 {[%emt 0:00:13]} 10. Nh4 {[%emt 0:10:19]} Bxg2 {[%emt 0:00:16]} 11. Nxg2 {[%emt 0:00:02]} e5 {[%emt 0:00:20]} 12. dxe5 {[%emt 0:00:38]} dxe5 {[%emt 0:00:29]} 13. Bg5 {[%emt 0:01:27]} Qc8 {[%emt 0:03:24]} 14. Qd2 {[%emt 0:35:29]} Nb6 {[%emt 0:00:54]} 15. Rad1 {[%emt 0:02:15]} Qe6 {[%emt 0:05:53]} 16. b3 {[%emt 0:00:36]} a5 {[%emt 0:03:11]} 17. c4 {[%emt 0:02:36]} f6 {[%emt 0:01:27]} 18. Be3 {[%emt 0:02:17]} Rf7 {[%emt 0:01:05]} 19. Bxb6 {[%emt 0:06:27]} Qxb6 {[%emt 0:00:18]} 20. Ne3 {[%emt 0:00:29]} Bf8 {[%emt 0:14:03]} 21. Nd5 {[%emt 0:00:26]} Qe6 {[%emt 0:01:20]} 22. e3 {[%emt 0:04:54]} Bc5 {[%emt 0:01:57]} 23. Nc3 {[%emt 0:02:48]} c6 {[%emt 0:00:11]} 24. Qd3 {[%emt 0:01:08]} f5 {[%emt 0:01:15]} 25. Na4 {[%emt 0:02:32]} Bb4 {[%emt 0:00:52]} 26. Re2 {[%emt 0:00:02]} Re8 {[%emt 0:10:59][%cal Ba8e8,Be8e7,Be7d7,Bd7d8][%mdl 32]} (26... Qe7 {simplifies} 27. c5 Bxc5 28. Nxc5 Qxc5 29. Rc2 Qf8) 27. c5 {[%emt 0:01:45]} Ree7 {[%emt 0:01:18]} 28. Qd8+ {[%emt 0:02:30]} Kg7 {[%emt 0:03:16]} 29. Rd6 {[%emt 0:00:35][%cal Bd1d6,Bd6e6,Be6e5][%mdl 32] The position is equal.} Rd7 {[%emt 0:02:37]} 30. Rxe6 {[%emt 0:00:02]} Rxd8 {[%emt 0:00:07]} 31. Rxe5 {[%emt 0:00:01]} Rd1+ {[%emt 0:02:41] Weighted Error Value: White=0.07 (flawless) /Black=0.06 (flawless) .  Inaccurate:     	White=2     	Black=4      OK:         	White=9     	Black=12     Best:        	White=1     	---} (31... Kf6 $5 32. f4 $8 Rd5 $11) 1/2-1/2

[Event "Elegant Academy GM Aspirant-II"]
[Site "Dhaka"]
[Date "2024.02.27"]
[Round "9.1"]
[White "Panesar Vedant"]
[Black "Aradhya, Garg"]
[Result "1/2-1/2"]
[ECO "C88"]
[WhiteElo "2452"]
[BlackElo "2390"]
[Annotator "TA"]
[PlyCount "49"]
[EventDate "2024.02.21"]
[EventType "tourn"]
[EventCountry "BAN"]
[SourceTitle "playchess.com"]
[Source "ChessBase"]
[SourceQuality "1"]
[TimeControl "5400+30"]

{[%evp 19,49,22,26,20,40,31,31,32,58,60,66,0,17,2,0,9,14,5,1,14,10,0,0,15,64,25,58,0,95,0,64,0]} 1. e4 {[%emt 0:02:55]} e5 {[%emt 0:00:02]} 2. Nf3 {[%emt 0:00:20]} Nc6 {[%emt 0:00:02]} 3. Bb5 {[%emt 0:00:05][%cal Bf1b5,Bb5a4,Ba4b3][%mdl 32]} a6 {[%emt 0:00:06]} 4. Ba4 {[%emt 0:00:02]} Nf6 {[%emt 0:01:54]} 5. O-O {[%emt 0:00:07]} Be7 {[%emt 0:00:14]} 6. Re1 {[%emt 0:00:03]} b5 {[%emt 0:00:04]} 7. Bb3 {[%emt 0:00:05]} O-O {[%emt 0:00:04]} 8. a4 {[%emt 0:00:01]} Rb8 {[%emt 0:00:34]} 9. axb5 {[%emt 0:00:16]} axb5 {[%emt 0:00:02]} 10. d3 {[%emt 0:00:02]} d6 {[%emt 0:08:29]} 11. h3 {[%emt 0:00:11]} h6 {[%emt 0:01:51]} 12. Nc3 {[%emt 0:00:09]} Be6 {[%emt 0:01:17]} 13. Nd5 {[%emt 0:02:37]} Bxd5 {[%emt 0:00:41]} 14. exd5 {[%emt 0:01:24]} Nb4 {[%emt 0:00:06]} 15. d4 {[%emt 0:00:22]} (15. Nh4 $14) 15... e4 $11 {[%emt 0:01:38]} 16. Nd2 {[%emt 0:00:10]} c5 $1 {[%emt 0:01:57] aiming for ...c4.} 17. dxc6 {[%emt 0:05:33] [#] And now d5 would win.} d5 {[%emt 0:00:09]} 18. f3 $36 {[%emt 0:02:11][%cal Rf3e4][%mdl 2048] White fights for an advantage.} Nxc6 {[%emt 0:07:07]} 19. c3 {[%emt 0:00:35]} exf3 {[%emt 0:03:34]} 20. Qxf3 {[%emt 0:00:20]} b4 {[%emt 0:02:21]} 21. Bc2 {[%emt 0:06:35]} Kh8 {[%emt 0:01:51]} (21... Bd6 $11 {might be stronger.}) 22. Kh1 {[%emt 0:00:00] White is much more active.} Kg8 {[%emt 0:00:01]} 23. Kg1 {[%emt 0:00:01]} Kh8 {[%emt 0:00:02]} 24. Kh1 {[%emt 0:00:00]} Kg8 {[%emt 0:00:01]} 25. Kg1 {[%emt 0:00:02] Weighted Error Value: White=0.25 (precise) /Black=0.09 (flawless) .  Mistake:       	White=2     	Black=1      Inaccurate:     	White=2     	Black=2      OK:         	White=6     	Black=5      Best:        	---       	Black=2      Strong:       	---       	Black=1} (25. Nf1 $14) 1/2-1/2

[Event "Elegant Academy GM Aspirant-II"]
[Site "Dhaka"]
[Date "2024.02.27"]
[Round "9.2"]
[White "Setyaki, Azarya Jodi"]
[Black "Sriram, Jha"]
[Result "1/2-1/2"]
[ECO "C55"]
[WhiteElo "2400"]
[BlackElo "2317"]
[Annotator "ChessBase"]
[PlyCount "48"]
[EventDate "2024.02.21"]
[EventType "tourn"]
[EventCountry "BAN"]
[SourceTitle "playchess.com"]
[Source "ChessBase"]
[SourceQuality "1"]
[TimeControl "5400+30"]

1. e4 {[%emt 0:03:51]} e5 {[%emt 0:00:38]} 2. Nf3 {[%emt 0:00:09]} Nc6 {[%emt 0:00:06]} 3. Bc4 {[%emt 0:00:16]} Nf6 {[%emt 0:00:06]} 4. d3 {[%emt 0:00:04]} Be7 {[%emt 0:00:21]} 5. O-O {[%emt 0:00:10]} O-O {[%emt 0:00:08]} 6. Nc3 {[%emt 0:00:29]} d6 {[%emt 0:00:10]} 7. a4 {[%emt 0:00:07]} Bg4 {[%emt 0:00:08]} 8. h3 {[%emt 0:00:22]} Bh5 {[%emt 0:00:04]} 9. Be3 {[%emt 0:00:18]} Qc8 {[%emt 0:00:40]} 10. Nd5 {[%emt 0:02:00]} Nxd5 {[%emt 0:00:36]} 11. Bxd5 {[%emt 0:00:11]} Kh8 {[%emt 0:00:29]} 12. g4 {[%emt 0:06:14]} Bg6 {[%emt 0:01:27]} 13. a5 {[%emt 0:02:34]} a6 {[%emt 0:00:07]} 14. Nd2 {[%emt 0:07:14]} Qd8 {[%emt 0:06:19]} 15. c3 {[%emt 0:08:29]} Nxa5 {[%emt 0:01:14]} 16. Rxa5 {[%emt 0:02:49]} c6 {[%emt 0:00:01]} 17. Nc4 {[%emt 0:00:17]} cxd5 {[%emt 0:01:45]} 18. Rxd5 {[%emt 0:00:08]} f6 {[%emt 0:03:30]} 19. Nb6 {[%emt 0:05:43]} Rb8 {[%emt 0:03:26]} 20. Ra5 {[%emt 0:00:58]} Bf7 {[%emt 0:00:01]} 21. Kg2 {[%emt 0:00:05]} Kg8 {[%emt 0:00:02]} 22. Kg1 {[%emt 0:00:05]} Kh8 {[%emt 0:00:00]} 23. Kg2 {[%emt 0:00:05]} Kg8 {[%emt 0:00:01]} 24. Kg1 {[%emt 0:00:05]} Kh8 {[%emt 0:00:00]} 1/2-1/2